[Event "*** Qualifier 2: Titled Tuesday 3|2 Blitz"]
[Site "Chess.com"]
[Date "2017.04.11"]
[Round "6"]
[White "djano"]
[Black "macko06"]
[Result "1-0"]
[WhiteElo "2321"]
[BlackElo "2345"]
[TimeControl "180+2"]
[EndTime "14:26:03 PDT"]
[Termination "djano won on time"]

1. d4 {[%clk 0:03:02]} 1... Nf6 {[%clk 0:02:59.2]} 2. Bf4 {[%clk 0:03:02.7]}
2... g6 {[%clk 0:02:58]} 3. Nc3 {[%clk 0:03:03]} 3... Bg7 {[%clk 0:02:56.1]} 4.
e4 {[%clk 0:03:03.9]} 4... d6 {[%clk 0:02:46.6]} 5. Qd2 {[%clk 0:03:03.7]} 5...
Nbd7 {[%clk 0:02:43.9]} 6. Bh6 {[%clk 0:03:00.6]} 6... O-O {[%clk 0:02:44.4]} 7.
h4 {[%clk 0:02:59]} 7... Bxh6 {[%clk 0:02:36.7]} 8. Qxh6 {[%clk 0:02:58.9]} 8...
e5 {[%clk 0:02:36.3]} 9. O-O-O {[%clk 0:02:47.4]} 9... Ng4 {[%clk 0:02:33.3]}
10. Qd2 {[%clk 0:02:42.9]} 10... exd4 {[%clk 0:02:33.5]} 11. Qxd4 {[%clk
0:02:36.9]} 11... Qf6 {[%clk 0:02:34.6]} 12. Nh3 {[%clk 0:02:23.6]} 12... Qxd4
{[%clk 0:02:31.2]} 13. Rxd4 {[%clk 0:02:25.5]} 13... Nc5 {[%clk 0:02:28]} 14.
Be2 {[%clk 0:02:07.2]} 14... Ne5 {[%clk 0:02:26]} 15. Nf4 {[%clk 0:01:51.5]}
15... Ne6 {[%clk 0:02:24.3]} 16. Nxe6 {[%clk 0:01:51.4]} 16... Bxe6 {[%clk
0:02:26.2]} 17. h5 {[%clk 0:01:43.4]} 17... a6 {[%clk 0:02:24.2]} 18. a4 {[%clk
0:01:29.9]} 18... Nc6 {[%clk 0:02:21]} 19. Rd2 {[%clk 0:01:27.7]} 19... g5
{[%clk 0:02:13.9]} 20. h6 {[%clk 0:01:24.3]} 20... Ne5 {[%clk 0:02:09.9]} 21. b3
{[%clk 0:01:03.8]} 21... f6 {[%clk 0:02:07.4]} 22. Kb2 {[%clk 0:01:03.1]} 22...
Kf7 {[%clk 0:02:05.2]} 23. Nd1 {[%clk 0:01:01.5]} 23... f5 {[%clk 0:02:03.3]}
24. exf5 {[%clk 0:01:00.3]} 24... Bxf5 {[%clk 0:02:05.2]} 25. Ne3 {[%clk
0:00:59.1]} 25... Be6 {[%clk 0:02:02.4]} 26. Nd5 {[%clk 0:00:46.5]} 26... Bxd5
{[%clk 0:02:00.3]} 27. Rxd5 {[%clk 0:00:48.4]} 27... Ke6 {[%clk 0:01:59.5]} 28.
Rd4 {[%clk 0:00:49.5]} 28... Rxf2 {[%clk 0:01:57.8]} 29. Rd2 {[%clk 0:00:31.7]}
29... Rxg2 {[%clk 0:01:54.6]} 30. Re1 {[%clk 0:00:24]} 30... Rf8 {[%clk
0:01:48.1]} 31. Bc4+ {[%clk 0:00:24.1]} 31... Kf5 {[%clk 0:01:44]} 32. Rxg2
{[%clk 0:00:24.8]} 32... Kg6 {[%clk 0:01:43]} 33. Bd5 {[%clk 0:00:23.3]} 33...
g4 {[%clk 0:01:40.1]} 34. Be4+ {[%clk 0:00:23.4]} 34... Kg5 {[%clk 0:01:38.5]}
35. Bxh7 {[%clk 0:00:22.7]} 35... Kxh6 {[%clk 0:01:34.5]} 36. Be4 {[%clk
0:00:23]} 36... c6 {[%clk 0:01:32.1]} 37. c4 {[%clk 0:00:24.3]} 37... Kg5 {[%clk
0:01:29.9]} 38. Rd1 {[%clk 0:00:24.5]} 38... Rf4 {[%clk 0:01:28.1]} 39. Bc2
{[%clk 0:00:23.7]} 39... Rf6 {[%clk 0:01:26.3]} 40. Rgd2 {[%clk 0:00:24.8]}
40... Nf7 {[%clk 0:01:13.7]} 41. Rg1 {[%clk 0:00:25.9]} 41... Ne5 {[%clk
0:01:10.7]} 42. Bd1 {[%clk 0:00:24.5]} 42... a5 {[%clk 0:01:07]} 43. Kc3 {[%clk
0:00:24.1]} 43... c5 {[%clk 0:01:05]} 44. Rd5 {[%clk 0:00:23]} 44... Kh4 {[%clk
0:01:00.3]} 45. Rxe5 {[%clk 0:00:24.3]} 45... dxe5 {[%clk 0:00:59.1]} 46. Rxg4+
{[%clk 0:00:25.3]} 46... Kh3 {[%clk 0:00:57.3]} 47. Re4 {[%clk 0:00:25.8]} 47...
Kg3 {[%clk 0:00:55.5]} 48. Rxe5 {[%clk 0:00:25.7]} 48... b6 {[%clk 0:00:54]} 49.
Bc2 {[%clk 0:00:24.8]} 49... Kf4 {[%clk 0:00:50.9]} 50. Re4+ {[%clk 0:00:26]}
50... Kg5 {[%clk 0:00:48.2]} 51. Re7 {[%clk 0:00:27.9]} 51... Rf3+ {[%clk
0:00:44.6]} 52. Bd3 {[%clk 0:00:29.1]} 52... Rf6 {[%clk 0:00:44.1]} 53. Kd2
{[%clk 0:00:29.8]} 53... Kf4 {[%clk 0:00:40]} 54. Re4+ {[%clk 0:00:28.7]} 54...
Kg3 {[%clk 0:00:37.6]} 55. Re3+ {[%clk 0:00:26.7]} 55... Kf4 {[%clk 0:00:36.6]}
56. Ke2 {[%clk 0:00:27.2]} 56... Rh6 {[%clk 0:00:33.3]} 57. Rf3+ {[%clk
0:00:28.3]} 57... Ke5 {[%clk 0:00:29.4]} 58. Ke3 {[%clk 0:00:25.6]} 58... Rh2
{[%clk 0:00:26.5]} 59. Be2 {[%clk 0:00:26.6]} 59... Rh1 {[%clk 0:00:24.5]} 60.
Kd3 {[%clk 0:00:25.9]} 60... Rb1 {[%clk 0:00:22.8]} 61. Kc2 {[%clk 0:00:26.3]}
61... Rh1 {[%clk 0:00:23.3]} 62. Rg3 {[%clk 0:00:24.8]} 62... Rh2 {[%clk
0:00:22.1]} 63. Kd3 {[%clk 0:00:25.2]} 63... Rh6 {[%clk 0:00:19.3]} 64. Bf1
{[%clk 0:00:23.9]} 64... Kf4 {[%clk 0:00:14.5]} 65. Re3 {[%clk 0:00:21.5]} 65...
Rd6+ {[%clk 0:00:13]} 66. Ke2 {[%clk 0:00:22.7]} 66... Kf5 {[%clk 0:00:11.1]}
67. Bg2 {[%clk 0:00:23.8]} 67... Kf4 {[%clk 0:00:10.1]} 68. Bd5 {[%clk
0:00:24.7]} 68... Rh6 {[%clk 0:00:07.3]} 69. Re6 {[%clk 0:00:25.2]} 69... Rh3
{[%clk 0:00:02.8]} 70. Rxb6 {[%clk 0:00:24.8]} 1-0

[Event "*** Qualifier 2: Titled Tuesday 3|2 Blitz"]
[Site "Chess.com"]
[Date "2017.04.11"]
[Round "6"]
[White "PelinGorki"]
[Black "Winehouse83"]
[Result "1-0"]
[WhiteElo "2397"]
[BlackElo "2316"]
[TimeControl "180+2"]
[EndTime "14:26:06 PDT"]
[Termination "PelinGorki won by resignation"]

1. e4 {[%clk 0:03:02]} 1... e5 {[%clk 0:02:59.3]} 2. Nc3 {[%clk 0:03:02.1]} 2...
Nf6 {[%clk 0:02:59.2]} 3. Bc4 {[%clk 0:03:01.9]} 3... Nc6 {[%clk 0:02:55.2]} 4.
d3 {[%clk 0:03:02.7]} 4... Na5 {[%clk 0:02:48.2]} 5. Nge2 {[%clk 0:03:03.4]}
5... Nxc4 {[%clk 0:02:48.1]} 6. dxc4 {[%clk 0:03:04.6]} 6... Be7 {[%clk
0:02:44.1]} 7. O-O {[%clk 0:03:05.7]} 7... O-O {[%clk 0:02:43.4]} 8. b3 {[%clk
0:03:06.1]} 8... d6 {[%clk 0:02:43.4]} 9. Qd3 {[%clk 0:03:06.2]} 9... b6 {[%clk
0:02:40.4]} 10. f4 {[%clk 0:03:06.1]} 10... exf4 {[%clk 0:02:39.9]} 11. Bxf4
{[%clk 0:03:04.3]} 11... Ng4 {[%clk 0:02:16.8]} 12. Rae1 {[%clk 0:03:02]} 12...
Bb7 {[%clk 0:02:11.2]} 13. Nd4 {[%clk 0:02:59.5]} 13... Ne5 {[%clk 0:02:03.8]}
14. Qh3 {[%clk 0:02:55.1]} 14... Bg5 {[%clk 0:01:59.5]} 15. Nd5 {[%clk 0:02:52]}
15... Bxf4 {[%clk 0:01:55.9]} 16. Rxf4 {[%clk 0:02:50.5]} 16... Bc8 {[%clk
0:01:52]} 17. Qg3 {[%clk 0:02:49.2]} 17... Ng6 {[%clk 0:01:50.6]} 18. Nc6 {[%clk
0:02:47.1]} 18... Qd7 {[%clk 0:01:40.2]} 19. Nce7+ {[%clk 0:02:46.7]} 19... Nxe7
{[%clk 0:01:13.2]} 20. Nf6+ {[%clk 0:02:47.1]} 20... Kh8 {[%clk 0:01:14.5]} 21.
Nxd7 {[%clk 0:02:48.9]} 21... Bxd7 {[%clk 0:01:15.8]} 22. Ref1 {[%clk
0:02:49.8]} 22... f6 {[%clk 0:01:14.6]} 23. h4 {[%clk 0:02:49.7]} 23... Ng6
{[%clk 0:01:15.3]} 24. R4f2 {[%clk 0:02:50.3]} 24... Ne5 {[%clk 0:01:15.2]} 25.
h5 {[%clk 0:02:51.3]} 25... h6 {[%clk 0:01:14.8]} 26. Qf4 {[%clk 0:02:47.4]}
26... a5 {[%clk 0:01:11.7]} 27. a4 {[%clk 0:02:46.8]} 27... Rae8 {[%clk
0:01:08.9]} 28. Re1 {[%clk 0:02:45.1]} 28... Bc8 {[%clk 0:01:05.2]} 29. Rd2
{[%clk 0:02:43.6]} 29... Bg4 {[%clk 0:00:58]} 30. Re3 {[%clk 0:02:43.7]} 30...
Bxh5 {[%clk 0:00:55.5]} 31. Rh3 {[%clk 0:02:43.5]} 31... Bg6 {[%clk 0:00:51.2]}
32. Re2 {[%clk 0:02:41.2]} 32... Nf7 {[%clk 0:00:50]} 33. Ree3 {[%clk
0:02:09.1]} 33... Ng5 {[%clk 0:00:49.5]} 34. Rhg3 {[%clk 0:02:10.1]} 34... Re5
{[%clk 0:00:43.8]} 35. Re1 {[%clk 0:01:36.4]} 35... Rfe8 {[%clk 0:00:42.9]} 36.
Rge3 {[%clk 0:01:37.1]} 36... Bxe4 {[%clk 0:00:37.9]} 37. Qf2 {[%clk 0:01:35.5]}
37... f5 {[%clk 0:00:36.9]} 38. c3 {[%clk 0:01:31.6]} 38... R8e6 {[%clk
0:00:33.7]} 39. b4 {[%clk 0:01:30.4]} 39... Rg6 {[%clk 0:00:33.7]} 40. Kh2
{[%clk 0:01:28.8]} 40... Rf6 {[%clk 0:00:27.5]} 41. g3 {[%clk 0:01:22.9]} 41...
Rg6 {[%clk 0:00:19]} 42. Rf1 {[%clk 0:01:21]} 42... Rge6 {[%clk 0:00:19.1]} 43.
c5 {[%clk 0:01:09.6]} 43... axb4 {[%clk 0:00:18.2]} 44. cxb6 {[%clk 0:01:07.4]}
44... cxb6 {[%clk 0:00:19.5]} 45. cxb4 {[%clk 0:01:07.8]} 45... d5 {[%clk
0:00:20.7]} 46. Qb2 {[%clk 0:01:04.8]} 46... Kh7 {[%clk 0:00:18.9]} 47. a5
{[%clk 0:00:55]} 47... bxa5 {[%clk 0:00:19.6]} 48. bxa5 {[%clk 0:00:56.5]} 48...
Re8 {[%clk 0:00:19.3]} 49. a6 {[%clk 0:00:55.7]} 49... R5e7 {[%clk 0:00:19.9]}
50. Ra3 {[%clk 0:00:55]} 50... Ra8 {[%clk 0:00:20.5]} 51. Rf2 {[%clk 0:00:37.2]}
51... Rd7 {[%clk 0:00:19.6]} 52. Qb5 {[%clk 0:00:36.5]} 52... Raa7 {[%clk
0:00:19.2]} 53. Qf1 {[%clk 0:00:28.2]} 53... Rf7 {[%clk 0:00:17.8]} 54. g4
{[%clk 0:00:26]} 54... fxg4 {[%clk 0:00:17.7]} 55. Rxf7 {[%clk 0:00:26.1]} 55...
Rxf7 {[%clk 0:00:19.2]} 56. Qa1 {[%clk 0:00:18.6]} 56... Rf2+ {[%clk 0:00:16]}
57. Kg3 {[%clk 0:00:17.1]} 57... Rg2+ {[%clk 0:00:16.6]} 58. Kf4 {[%clk
0:00:17.6]} 58... Nh3+ {[%clk 0:00:11.6]} 59. Ke5 {[%clk 0:00:18.1]} 59... Re2
{[%clk 0:00:12.3]} 60. a7 {[%clk 0:00:18]} 60... d4 {[%clk 0:00:12.8]} 61. Kxd4
{[%clk 0:00:16.4]} 61... Nf4 {[%clk 0:00:08.8]} 62. Re3 {[%clk 0:00:15]} 62...
Ne6+ {[%clk 0:00:09.3]} 63. Kxe4 {[%clk 0:00:15.9]} 63... Nc5+ {[%clk
0:00:09.1]} 64. Kd4 {[%clk 0:00:16.7]} 64... Nb3+ {[%clk 0:00:09.2]} 65. Rxb3
{[%clk 0:00:17.3]} 1-0

[Event "*** Qualifier 2: Titled Tuesday 3|2 Blitz"]
[Site "Chess.com"]
[Date "2017.04.11"]
[Round "6"]
[White "Lector118"]
[Black "SmoothAsAHedgehog"]
[Result "1-0"]
[WhiteElo "2423"]
[BlackElo "2503"]
[TimeControl "180+2"]
[EndTime "14:26:51 PDT"]
[Termination "Lector118 won by resignation"]

1. d4 {[%clk 0:03:01.9]} 1... Nf6 {[%clk 0:02:56.4]} 2. c4 {[%clk 0:03:03.1]}
2... e6 {[%clk 0:02:57.6]} 3. g3 {[%clk 0:03:03]} 3... Bb4+ {[%clk 0:02:57.9]}
4. Bd2 {[%clk 0:03:03]} 4... Qe7 {[%clk 0:02:58.1]} 5. Bg2 {[%clk 0:03:03.8]}
5... Nc6 {[%clk 0:02:56.7]} 6. e3 {[%clk 0:03:04.6]} 6... O-O {[%clk 0:02:53.4]}
7. Ne2 {[%clk 0:03:05]} 7... Bxd2+ {[%clk 0:02:52.9]} 8. Qxd2 {[%clk 0:03:06.1]}
8... d6 {[%clk 0:02:54.6]} 9. O-O {[%clk 0:03:06.4]} 9... e5 {[%clk 0:02:55.7]}
10. Nbc3 {[%clk 0:03:06.5]} 10... Bg4 {[%clk 0:02:54.5]} 11. d5 {[%clk
0:03:06.2]} 11... Nb8 {[%clk 0:02:53.1]} 12. h3 {[%clk 0:03:06.3]} 12... Bxe2
{[%clk 0:02:53]} 13. Qxe2 {[%clk 0:03:04.4]} 13... a5 {[%clk 0:02:54.9]} 14. e4
{[%clk 0:03:04.4]} 14... Na6 {[%clk 0:02:53.9]} 15. a3 {[%clk 0:03:04.6]} 15...
Nc5 {[%clk 0:02:53.2]} 16. Qc2 {[%clk 0:02:59.4]} 16... a4 {[%clk 0:02:53.5]}
17. Rad1 {[%clk 0:02:52]} 17... Nfd7 {[%clk 0:02:52.7]} 18. f4 {[%clk
0:02:51.4]} 18... exf4 {[%clk 0:02:47.9]} 19. gxf4 {[%clk 0:02:49.9]} 19... f5
{[%clk 0:02:48.8]} 20. Nb5 {[%clk 0:02:38.9]} 20... Rac8 {[%clk 0:02:11.4]} 21.
exf5 {[%clk 0:02:38]} 21... Nb3 {[%clk 0:02:04.2]} 22. Rde1 {[%clk 0:02:11.5]}
22... Qf7 {[%clk 0:02:04.1]} 23. Bf3 {[%clk 0:02:08.2]} 23... Ndc5 {[%clk
0:02:03.3]} 24. Kh2 {[%clk 0:01:53.8]} 24... Qf6 {[%clk 0:01:56]} 25. Rg1 {[%clk
0:01:46.2]} 25... Nd4 {[%clk 0:01:44.9]} 26. Qc3 {[%clk 0:01:45.5]} 26... Nxb5
{[%clk 0:01:19.9]} 27. cxb5 {[%clk 0:01:39]} 27... Qxc3 {[%clk 0:01:16.4]} 28.
bxc3 {[%clk 0:01:40.9]} 28... Rce8 {[%clk 0:01:17]} 29. Bh5 {[%clk 0:01:35.8]}
29... Rxe1 {[%clk 0:01:08.6]} 30. Rxe1 {[%clk 0:01:37.7]} 30... Rxf5 {[%clk
0:01:04.2]} 31. Re8+ {[%clk 0:01:31]} 31... Rf8 {[%clk 0:01:04.9]} 32. Re7
{[%clk 0:01:31.7]} 32... g6 {[%clk 0:01:06.3]} 33. Bg4 {[%clk 0:01:29.5]} 33...
Rf7 {[%clk 0:01:06.5]} 34. Re8+ {[%clk 0:01:21.6]} 34... Kg7 {[%clk 0:01:02.4]}
35. Kg3 {[%clk 0:01:22.2]} 35... Rf8 {[%clk 0:00:58.1]} 36. Re7+ {[%clk
0:01:22.3]} 36... Rf7 {[%clk 0:00:59.6]} 37. Re8 {[%clk 0:01:23.3]} 37... Nd3
{[%clk 0:00:43.3]} 38. Re4 {[%clk 0:01:18.7]} 38... Kf8 {[%clk 0:00:32.5]} 39.
Rxa4 {[%clk 0:01:14]} 39... Re7 {[%clk 0:00:33.1]} 40. Be6 {[%clk 0:01:09.5]}
40... Nc5 {[%clk 0:00:33.3]} 41. Ra8+ {[%clk 0:01:10]} 41... Kg7 {[%clk
0:00:34.9]} 42. Rc8 {[%clk 0:01:07.5]} 42... Kf6 {[%clk 0:00:26.4]} 43. Rf8+
{[%clk 0:00:37.9]} 43... Kg7 {[%clk 0:00:27.3]} 44. Rd8 {[%clk 0:00:36.7]} 44...
b6 {[%clk 0:00:26.8]} 45. Kg4 {[%clk 0:00:33]} 45... Kf6 {[%clk 0:00:13.3]} 46.
Rf8+ {[%clk 0:00:33]} 46... Kg7 {[%clk 0:00:14.6]} 47. Rc8 {[%clk 0:00:26.8]}
47... Ne4 {[%clk 0:00:13.8]} 48. c4 {[%clk 0:00:23.9]} 48... Nd2 {[%clk
0:00:11.3]} 49. c5 {[%clk 0:00:24.8]} 49... bxc5 {[%clk 0:00:09]} 50. Rg8+
{[%clk 0:00:19.5]} 50... Kf6 {[%clk 0:00:09.7]} 51. Rf8+ {[%clk 0:00:20.1]}
51... Kg7 {[%clk 0:00:11.2]} 52. Rg8+ {[%clk 0:00:20.8]} 52... Kh6 {[%clk
0:00:12.8]} 53. f5 {[%clk 0:00:19.9]} 53... gxf5+ {[%clk 0:00:10.4]} 54. Kxf5
{[%clk 0:00:20.2]} 54... Rg7 {[%clk 0:00:08.3]} 55. Rxg7 {[%clk 0:00:19.4]}
55... Kxg7 {[%clk 0:00:10.2]} 56. Kf4 {[%clk 0:00:21.3]} 56... Kf6 {[%clk
0:00:09.9]} 57. a4 {[%clk 0:00:21.5]} 57... Nb3 {[%clk 0:00:10.4]} 58. Ke4
{[%clk 0:00:21.3]} 58... Na5 {[%clk 0:00:11.8]} 59. h4 {[%clk 0:00:20.4]} 59...
h6 {[%clk 0:00:12.6]} 60. Bg8 {[%clk 0:00:19.1]} 60... c4 {[%clk 0:00:09.1]} 61.
Be6 {[%clk 0:00:19.3]} 61... Kg6 {[%clk 0:00:08.6]} 62. Bg4 {[%clk 0:00:19.2]}
62... Kf6 {[%clk 0:00:09.5]} 63. Kd4 {[%clk 0:00:19.6]} 63... Kg6 {[%clk
0:00:06.3]} 64. Kc3 {[%clk 0:00:20.5]} 64... Kf6 {[%clk 0:00:06.9]} 65. Kb4
{[%clk 0:00:21.4]} 65... Nb7 {[%clk 0:00:05.5]} 66. Kxc4 {[%clk 0:00:22.4]}
66... Ke5 {[%clk 0:00:06.2]} 67. Bf3 {[%clk 0:00:20.7]} 67... Kf4 {[%clk
0:00:07.3]} 68. Bh1 {[%clk 0:00:21.2]} 68... Kg4 {[%clk 0:00:08.3]} 69. Kb4
{[%clk 0:00:21.7]} 69... Kxh4 {[%clk 0:00:08.7]} 70. a5 {[%clk 0:00:23]} 70...
Nc5 {[%clk 0:00:10.3]} 71. a6 {[%clk 0:00:22.9]} 71... Nd7 {[%clk 0:00:11.4]}
72. b6 {[%clk 0:00:15.6]} 72... Nxb6 {[%clk 0:00:09.2]} 73. Kb5 {[%clk
0:00:16.8]} 73... Kg3 {[%clk 0:00:08.6]} 74. Kc6 {[%clk 0:00:17]} 74... Kh2
{[%clk 0:00:09.7]} 75. Be4 {[%clk 0:00:17.2]} 75... h5 {[%clk 0:00:10.2]} 76.
Kxc7 {[%clk 0:00:18.2]} 76... Na8+ {[%clk 0:00:05.1]} 77. Kb7 {[%clk 0:00:18.5]}
77... Kg3 {[%clk 0:00:06.3]} 78. Kxa8 {[%clk 0:00:19.1]} 78... Kf4 {[%clk
0:00:08.2]} 79. Bh1 {[%clk 0:00:19.9]} 1-0

[Event "*** Qualifier 2: Titled Tuesday 3|2 Blitz"]
[Site "Chess.com"]
[Date "2017.04.11"]
[Round "6"]
[White "proxy6"]
[Black "alturas_pacificas"]
[Result "0-1"]
[WhiteElo "2210"]
[BlackElo "2142"]
[TimeControl "180+2"]
[EndTime "14:27:07 PDT"]
[Termination "alturas_pacificas won by resignation"]

1. e4 {[%clk 0:03:02]} 1... e5 {[%clk 0:02:58.4]} 2. Nf3 {[%clk 0:03:01.8]} 2...
Nf6 {[%clk 0:02:59.7]} 3. Nxe5 {[%clk 0:02:59.2]} 3... d6 {[%clk 0:03:00.4]} 4.
Nc4 {[%clk 0:03:00.5]} 4... Nxe4 {[%clk 0:03:00.8]} 5. Nc3 {[%clk 0:03:01.6]}
5... Nxc3 {[%clk 0:03:01.2]} 6. dxc3 {[%clk 0:03:03.5]} 6... d5 {[%clk
0:02:57.1]} 7. Ne3 {[%clk 0:03:02.7]} 7... c6 {[%clk 0:02:58.3]} 8. Bd3 {[%clk
0:03:03]} 8... Be7 {[%clk 0:02:55.7]} 9. Bd2 {[%clk 0:03:01.5]} 9... O-O {[%clk
0:02:56.8]} 10. Qf3 {[%clk 0:02:55.5]} 10... Nd7 {[%clk 0:02:56.4]} 11. O-O-O
{[%clk 0:02:51.8]} 11... Ne5 {[%clk 0:02:55.6]} 12. Bxh7+ {[%clk 0:02:49.3]}
12... Kxh7 {[%clk 0:02:48.1]} 13. Qh5+ {[%clk 0:02:49.6]} 13... Kg8 {[%clk
0:02:48.7]} 14. Qxe5 {[%clk 0:02:50.8]} 14... Bf6 {[%clk 0:02:41.5]} 15. Qg3
{[%clk 0:02:49.1]} 15... a5 {[%clk 0:02:39.9]} 16. h4 {[%clk 0:02:49.1]} 16...
a4 {[%clk 0:02:36.3]} 17. a3 {[%clk 0:02:33.5]} 17... Qb6 {[%clk 0:02:25.1]} 18.
Ng4 {[%clk 0:02:24.6]} 18... Bxg4 {[%clk 0:02:21]} 19. Qxg4 {[%clk 0:02:26.5]}
19... d4 {[%clk 0:02:11.2]} 20. cxd4 {[%clk 0:02:16.5]} 20... Bxd4 {[%clk
0:02:01.8]} 21. Bb4 {[%clk 0:02:15.1]} 21... c5 {[%clk 0:01:43.8]} 22. Rxd4
{[%clk 0:02:13.4]} 22... cxd4 {[%clk 0:01:43.5]} 23. Bxf8 {[%clk 0:02:13.8]}
23... Rxf8 {[%clk 0:01:44.8]} 24. Rd1 {[%clk 0:02:12.1]} 24... Rd8 {[%clk
0:01:43]} 25. Qf4 {[%clk 0:02:12.3]} 25... Qc5 {[%clk 0:01:20.2]} 26. Kb1 {[%clk
0:01:55.9]} 26... b5 {[%clk 0:01:16.9]} 27. Rd3 {[%clk 0:01:50.8]} 27... Rc8
{[%clk 0:00:47.8]} 28. Qd2 {[%clk 0:01:48.7]} 28... Rd8 {[%clk 0:00:36]} 29. c3
{[%clk 0:01:47.7]} 29... Qf5 {[%clk 0:00:31.5]} 30. Qc2 {[%clk 0:01:18]} 30...
Qg4 {[%clk 0:00:24.2]} 31. g3 {[%clk 0:01:05.8]} 31... Rd7 {[%clk 0:00:21.3]}
32. cxd4 {[%clk 0:00:34.3]} 32... Rxd4 {[%clk 0:00:21.5]} 33. Rxd4 {[%clk
0:00:33.7]} 33... Qxd4 {[%clk 0:00:23.4]} 34. Qc8+ {[%clk 0:00:34.3]} 34... Kh7
{[%clk 0:00:24.7]} 35. Qf5+ {[%clk 0:00:35.2]} 35... Kg8 {[%clk 0:00:25.8]} 36.
Qxb5 {[%clk 0:00:34.1]} 36... Qxf2 {[%clk 0:00:21.4]} 37. Qxa4 {[%clk
0:00:28.7]} 37... Qe1+ {[%clk 0:00:22.6]} 38. Ka2 {[%clk 0:00:28.4]} 38... Qxg3
{[%clk 0:00:24.5]} 39. Qe8+ {[%clk 0:00:27.8]} 39... Kh7 {[%clk 0:00:23.3]} 40.
Qe4+ {[%clk 0:00:29.3]} 40... g6 {[%clk 0:00:21.7]} 41. a4 {[%clk 0:00:28.4]}
41... f5 {[%clk 0:00:20.8]} 42. Qe7+ {[%clk 0:00:26]} 42... Kh8 {[%clk
0:00:19.8]} 43. a5 {[%clk 0:00:24.4]} 43... Qd3 {[%clk 0:00:17.9]} 44. Qe5+
{[%clk 0:00:21.4]} 44... Kh7 {[%clk 0:00:18.4]} 45. Qc7+ {[%clk 0:00:15.8]}
45... Kh6 {[%clk 0:00:18.5]} 46. Qf4+ {[%clk 0:00:09]} 46... Kh7 {[%clk
0:00:19.4]} 47. Qe5 {[%clk 0:00:08.8]} 47... Qc4+ {[%clk 0:00:19.8]} 48. Ka3
{[%clk 0:00:07.9]} 48... f4 {[%clk 0:00:20]} 49. b3 {[%clk 0:00:03.6]} 49...
Qc1+ {[%clk 0:00:20]} 50. Ka4 {[%clk 0:00:04.4]} 50... Qc6+ {[%clk 0:00:19.9]}
51. Ka3 {[%clk 0:00:03.4]} 51... f3 {[%clk 0:00:20.6]} 52. Qe7+ {[%clk
0:00:03.3]} 52... Kh6 {[%clk 0:00:21.8]} 53. Qg5+ {[%clk 0:00:04.5]} 53... Kh7
{[%clk 0:00:23.2]} 54. Qe7+ {[%clk 0:00:05.7]} 54... Kh6 {[%clk 0:00:22.2]} 55.
Qf8+ {[%clk 0:00:06.8]} 55... Kh7 {[%clk 0:00:22.4]} 56. Qf7+ {[%clk 0:00:07.6]}
56... Kh6 {[%clk 0:00:23.1]} 57. Qf4+ {[%clk 0:00:08.5]} 57... Kg7 {[%clk
0:00:23.6]} 58. Qe5+ {[%clk 0:00:07.8]} 58... Kf7 {[%clk 0:00:23.8]} 59. Qf4+
{[%clk 0:00:06.8]} 59... Ke7 {[%clk 0:00:24.1]} 60. Qe5+ {[%clk 0:00:05.9]}
60... Kd7 {[%clk 0:00:24.9]} 61. Qg7+ {[%clk 0:00:06.2]} 61... Kc8 {[%clk
0:00:26]} 62. Qf8+ {[%clk 0:00:06]} 62... Kb7 {[%clk 0:00:27.1]} 63. Qe7+ {[%clk
0:00:03.7]} 63... Ka6 {[%clk 0:00:27.6]} 64. b4 {[%clk 0:00:04.3]} 64... Qc3+
{[%clk 0:00:26.3]} 65. Ka2 {[%clk 0:00:05]} 65... Qc2+ {[%clk 0:00:21.5]} 66.
Ka3 {[%clk 0:00:05.9]} 66... Qc3+ {[%clk 0:00:15.3]} 67. Ka2 {[%clk 0:00:06.8]}
67... Qd2+ {[%clk 0:00:14.6]} 68. Kb3 {[%clk 0:00:06.7]} 68... Qd3+ {[%clk
0:00:15.7]} 69. Ka4 {[%clk 0:00:03.4]} 69... Qb5+ {[%clk 0:00:15.7]} 70. Ka3
{[%clk 0:00:03.6]} 70... Qd3+ {[%clk 0:00:14.5]} 71. Ka4 {[%clk 0:00:04.3]}
71... Qc2+ {[%clk 0:00:15.1]} 72. Ka3 {[%clk 0:00:05.3]} 72... Qc1+ {[%clk
0:00:14.2]} 73. Ka2 {[%clk 0:00:04.1]} 73... Qd2+ {[%clk 0:00:10.8]} 74. Ka3
{[%clk 0:00:04.8]} 74... Qd3+ {[%clk 0:00:12]} 75. Ka4 {[%clk 0:00:05]} 75...
Qd1+ {[%clk 0:00:13.3]} 76. Ka3 {[%clk 0:00:05.3]} 76... Qa1+ {[%clk 0:00:14.2]}
77. Kb3 {[%clk 0:00:06.2]} 77... Qb1+ {[%clk 0:00:15.5]} 78. Kc4 {[%clk
0:00:07]} 78... Qc2+ {[%clk 0:00:15.1]} 79. Kd5 {[%clk 0:00:07.2]} 79... Qd2+
{[%clk 0:00:14.6]} 80. Kc6 {[%clk 0:00:07.6]} 80... Qc3+ {[%clk 0:00:13.7]} 81.
Kd7 {[%clk 0:00:06.7]} 81... Qd3+ {[%clk 0:00:13.8]} 82. Ke8 {[%clk 0:00:06.4]}
82... Qe2 {[%clk 0:00:12.8]} 83. b5+ {[%clk 0:00:04.4]} 83... Kxb5 {[%clk
0:00:12.9]} 0-1